[Event "Late-Titled-Tuesday-Blitz-February-06-2024"]
[Site "Chess.com"]
[Date "2024.02.06"]
[Round "4"]
[White "Englishman_18"]
[Black "ural58"]
[Result "0-1"]
[WhiteElo "2155"]
[BlackElo "2475"]
[TimeControl "180+1"]
[EndTime "14:38:28 PST"]
[Termination "ural58 won on time"]

1. Nf3 {[%clk 0:03:00.9]} 1... d5 {[%clk 0:02:57.9]} 2. g3 {[%clk 0:02:59.9]}
2... Nc6 {[%clk 0:02:56.8]} 3. d4 {[%clk 0:02:59.3]} 3... Bf5 {[%clk 0:02:56.6]}
4. Bg2 {[%clk 0:02:58.1]} 4... Nb4 {[%clk 0:02:56.5]} 5. Na3 {[%clk 0:02:56.3]}
5... e6 {[%clk 0:02:56.4]} 6. c3 {[%clk 0:02:54.9]} 6... Nc6 {[%clk 0:02:55.4]}
7. Nc2 {[%clk 0:02:52]} 7... h6 {[%clk 0:02:53.5]} 8. O-O {[%clk 0:02:51.5]}
8... Nf6 {[%clk 0:02:47.9]} 9. Nce1 {[%clk 0:02:46.4]} 9... Be7 {[%clk
0:02:45.7]} 10. Nd3 {[%clk 0:02:46]} 10... O-O {[%clk 0:02:45.7]} 11. Nfe5
{[%clk 0:02:45.3]} 11... Nxe5 {[%clk 0:02:38.3]} 12. Nxe5 {[%clk 0:02:43.7]}
12... Nd7 {[%clk 0:02:37.5]} 13. Nd3 {[%clk 0:02:27.8]} 13... c5 {[%clk
0:02:30.6]} 14. dxc5 {[%clk 0:02:24.1]} 14... Nxc5 {[%clk 0:02:30.6]} 15. Be3
{[%clk 0:02:21.7]} 15... b6 {[%clk 0:02:25.1]} 16. Ne5 {[%clk 0:02:17.8]} 16...
Rc8 {[%clk 0:02:21.6]} 17. c4 {[%clk 0:02:11.2]} 17... Bf6 {[%clk 0:02:07.1]}
18. f4 {[%clk 0:00:54.3]} 18... Bxe5 {[%clk 0:01:59.7]} 19. fxe5 {[%clk
0:00:54.4]} 19... dxc4 {[%clk 0:01:55.4]} 20. Rc1 {[%clk 0:00:51.4]} 20... b5
{[%clk 0:01:51]} 21. b3 {[%clk 0:00:49.4]} 21... Bg4 {[%clk 0:01:30.1]} 22. Bf3
{[%clk 0:00:24.2]} 22... Bxf3 {[%clk 0:01:22.4]} 23. Bxc5 {[%clk 0:00:09.7]}
23... Qxd1 {[%clk 0:01:18.6]} 24. Rfxd1 {[%clk 0:00:08.9]} 24... Bxe2 {[%clk
0:01:18.6]} 25. Bxf8 {[%clk 0:00:08.8]} 25... Bxd1 {[%clk 0:01:18.6]} 26. Rxd1
{[%clk 0:00:08.9]} 26... Kxf8 {[%clk 0:01:17.8]} 27. bxc4 {[%clk 0:00:08.5]}
27... bxc4 {[%clk 0:01:18]} 28. Kf2 {[%clk 0:00:07]} 28... c3 {[%clk 0:01:18.2]}
29. Rc1 {[%clk 0:00:07.2]} 29... c2 {[%clk 0:01:18]} 30. Ke2 {[%clk 0:00:07.6]}
30... Rc5 {[%clk 0:01:18]} 31. Kd2 {[%clk 0:00:07.9]} 31... Ke7 {[%clk
0:01:16.2]} 32. a3 {[%clk 0:00:05.9]} 32... g5 {[%clk 0:01:12]} 33. Rf1 {[%clk
0:00:04.7]} 33... Rxe5 {[%clk 0:01:11.1]} 34. Kxc2 {[%clk 0:00:04.1]} 34... Re2+
{[%clk 0:01:11.2]} 35. Kd3 {[%clk 0:00:03.8]} 35... Rxh2 {[%clk 0:01:11.8]} 36.
Rb1 {[%clk 0:00:04.1]} 36... Rg2 {[%clk 0:01:11.2]} 37. Rb7+ {[%clk 0:00:03.4]}
37... Kf6 {[%clk 0:01:11.4]} 38. Rxa7 {[%clk 0:00:04.3]} 38... Rxg3+ {[%clk
0:01:11.6]} 39. Ke2 {[%clk 0:00:05]} 39... h5 {[%clk 0:01:11.8]} 40. a4 {[%clk
0:00:05.1]} 40... Ra3 {[%clk 0:01:11.4]} 41. a5 {[%clk 0:00:05]} 41... g4 {[%clk
0:01:11.6]} 42. Ra8 {[%clk 0:00:04.7]} 42... Ra2+ {[%clk 0:01:11.6]} 43. Kf1
{[%clk 0:00:04.2]} 43... g3 {[%clk 0:01:11.9]} 44. a6 {[%clk 0:00:03.7]} 44...
h4 {[%clk 0:01:12.1]} 45. a7 {[%clk 0:00:02.8]} 45... h3 {[%clk 0:01:12.2]} 46.
Rh8 {[%clk 0:00:01.1]} 46... Ra1+ {[%clk 0:01:12.2]} 47. Ke2 {[%clk 0:00:01.1]}
47... g2 {[%clk 0:01:12.4]} 0-1

[Event "Late-Titled-Tuesday-Blitz-February-06-2024"]
[Site "Chess.com"]
[Date "2024.02.06"]
[Round "4"]
[White "DenLaz"]
[Black "krzyzan94"]
[Result "1-0"]
[WhiteElo "3048"]
[BlackElo "2808"]
[TimeControl "180+1"]
[EndTime "14:38:39 PST"]
[Termination "DenLaz won by checkmate"]

1. d4 {[%clk 0:03:00.9]} 1... Nf6 {[%clk 0:02:53.6]} 2. c4 {[%clk 0:03:01.2]}
2... e6 {[%clk 0:02:52]} 3. Nc3 {[%clk 0:03:01.7]} 3... Bb4 {[%clk 0:02:51.1]}
4. Nf3 {[%clk 0:03:01.5]} 4... Bxc3+ {[%clk 0:02:43.7]} 5. bxc3 {[%clk
0:03:01.1]} 5... d6 {[%clk 0:02:40.9]} 6. Qc2 {[%clk 0:03:00.1]} 6... Nc6 {[%clk
0:02:35.3]} 7. e4 {[%clk 0:03:00.3]} 7... e5 {[%clk 0:02:35.9]} 8. Be2 {[%clk
0:02:56.8]} 8... O-O {[%clk 0:02:35.7]} 9. O-O {[%clk 0:02:56.5]} 9... Re8
{[%clk 0:02:35.7]} 10. d5 {[%clk 0:02:55.8]} 10... Nb8 {[%clk 0:02:32.2]} 11.
Be3 {[%clk 0:02:50.3]} 11... Nbd7 {[%clk 0:02:30.3]} 12. Nd2 {[%clk 0:02:49.8]}
12... b6 {[%clk 0:02:26.7]} 13. f3 {[%clk 0:02:49.9]} 13... Nc5 {[%clk
0:02:21.8]} 14. Kh1 {[%clk 0:02:49.9]} 14... Bd7 {[%clk 0:02:19.8]} 15. Qd1
{[%clk 0:02:47]} 15... Nh5 {[%clk 0:02:10.9]} 16. g3 {[%clk 0:02:47.1]} 16... g6
{[%clk 0:01:55.5]} 17. Qe1 {[%clk 0:02:41.1]} 17... Ng7 {[%clk 0:01:37.6]} 18.
Nb3 {[%clk 0:02:20.1]} 18... f5 {[%clk 0:01:35.2]} 19. Nxc5 {[%clk 0:02:20.2]}
19... bxc5 {[%clk 0:01:34.2]} 20. Qd2 {[%clk 0:02:20.2]} 20... Rb8 {[%clk
0:01:33.2]} 21. Bg5 {[%clk 0:02:19.4]} 21... Qc8 {[%clk 0:01:33.4]} 22. Bd3
{[%clk 0:02:19.2]} 22... Rf8 {[%clk 0:01:31.8]} 23. f4 {[%clk 0:02:16.9]} 23...
fxe4 {[%clk 0:01:31.1]} 24. Bxe4 {[%clk 0:02:16.7]} 24... Bh3 {[%clk 0:01:30.7]}
25. Rf2 {[%clk 0:02:12.4]} 25... Bf5 {[%clk 0:01:25.1]} 26. Bg2 {[%clk
0:02:07.6]} 26... exf4 {[%clk 0:01:22.4]} 27. Rxf4 {[%clk 0:02:07.2]} 27... Qd7
{[%clk 0:01:19.8]} 28. Raf1 {[%clk 0:02:07.3]} 28... Nh5 {[%clk 0:01:02.6]} 29.
R4f2 {[%clk 0:02:04]} 29... Rfe8 {[%clk 0:00:48.6]} 30. Bh6 {[%clk 0:02:01.6]}
30... Qe7 {[%clk 0:00:28.3]} 31. Bg5 {[%clk 0:01:47.6]} 31... Qe5 {[%clk
0:00:27.6]} 32. Kg1 {[%clk 0:01:45.2]} 32... Nf6 {[%clk 0:00:26.4]} 33. Bxf6
{[%clk 0:01:42.7]} 33... Qxf6 {[%clk 0:00:27.3]} 34. g4 {[%clk 0:01:43.4]} 34...
Re5 {[%clk 0:00:09.8]} 35. gxf5 {[%clk 0:01:43.5]} 35... g5 {[%clk 0:00:10.6]}
36. Re2 {[%clk 0:01:43.4]} 36... Rbe8 {[%clk 0:00:10.3]} 37. Rfe1 {[%clk
0:01:41.3]} 37... h6 {[%clk 0:00:07.7]} 38. Rxe5 {[%clk 0:01:41.3]} 38... Rxe5
{[%clk 0:00:08.6]} 39. Rxe5 {[%clk 0:01:41.6]} 39... Qxe5 {[%clk 0:00:08.9]} 40.
Bf3 {[%clk 0:01:34.4]} 40... Qxf5 {[%clk 0:00:09.1]} 41. Qe2 {[%clk 0:01:34.5]}
41... Qf4 {[%clk 0:00:08.6]} 42. Kg2 {[%clk 0:01:34.6]} 42... Qc1 {[%clk
0:00:08]} 43. Qe8+ {[%clk 0:01:26.7]} 43... Kg7 {[%clk 0:00:08.4]} 44. Qe7+
{[%clk 0:01:27.3]} 44... Kg8 {[%clk 0:00:07]} 45. Qd8+ {[%clk 0:01:27.6]} 45...
Kg7 {[%clk 0:00:06.9]} 46. Qxc7+ {[%clk 0:01:28.2]} 46... Kh8 {[%clk 0:00:07.2]}
47. Qd8+ {[%clk 0:01:28.3]} 47... Kg7 {[%clk 0:00:07.3]} 48. Qe7+ {[%clk
0:01:28.8]} 48... Kg8 {[%clk 0:00:07.8]} 49. Qe4 {[%clk 0:01:22.8]} 49... Kg7
{[%clk 0:00:05.9]} 50. Bh5 {[%clk 0:01:17.2]} 50... Qd2+ {[%clk 0:00:05.5]} 51.
Qe2 {[%clk 0:01:17.8]} 51... Qxc3 {[%clk 0:00:03.7]} 52. Qe7+ {[%clk 0:01:18.3]}
52... Kh8 {[%clk 0:00:03]} 53. Qe8+ {[%clk 0:01:16.6]} 53... Kh7 {[%clk
0:00:03.1]} 54. Bg6+ {[%clk 0:01:16.7]} 54... Kg7 {[%clk 0:00:03.2]} 55. Qf7+
{[%clk 0:01:17.6]} 55... Kh8 {[%clk 0:00:03.7]} 56. Qh7# {[%clk 0:01:18.5]} 1-0

[Event "Late-Titled-Tuesday-Blitz-February-06-2024"]
[Site "Chess.com"]
[Date "2024.02.06"]
[Round "4"]
[White "dropstoneDP"]
[Black "ozates"]
[Result "1-0"]
[WhiteElo "2999"]
[BlackElo "2611"]
[TimeControl "180+1"]
[EndTime "14:38:39 PST"]
[Termination "dropstoneDP won by resignation"]

1. e4 {[%clk 0:03:00.9]} 1... c5 {[%clk 0:02:56.1]} 2. Nf3 {[%clk 0:03:01]} 2...
Nc6 {[%clk 0:02:56.4]} 3. Bb5 {[%clk 0:03:00.4]} 3... g6 {[%clk 0:02:56.2]} 4.
O-O {[%clk 0:02:57.6]} 4... Bg7 {[%clk 0:02:56.2]} 5. Re1 {[%clk 0:02:57.7]}
5... e5 {[%clk 0:02:55.8]} 6. Bxc6 {[%clk 0:02:58]} 6... dxc6 {[%clk 0:02:55.7]}
7. a4 {[%clk 0:02:57.4]} 7... Qc7 {[%clk 0:02:55.4]} 8. d3 {[%clk 0:02:57]} 8...
Nf6 {[%clk 0:02:50.8]} 9. Na3 {[%clk 0:02:54.6]} 9... Nd7 {[%clk 0:02:50]} 10.
Nc4 {[%clk 0:02:54.2]} 10... O-O {[%clk 0:02:49.6]} 11. a5 {[%clk 0:02:53]}
11... Rb8 {[%clk 0:02:48.1]} 12. b3 {[%clk 0:02:48]} 12... b5 {[%clk 0:02:47.1]}
13. axb6 {[%clk 0:02:48]} 13... axb6 {[%clk 0:02:48]} 14. Bb2 {[%clk 0:02:48.1]}
14... Re8 {[%clk 0:02:46.6]} 15. Qd2 {[%clk 0:02:46.1]} 15... Nf8 {[%clk
0:02:35.3]} 16. h4 {[%clk 0:02:31.9]} 16... Bg4 {[%clk 0:02:34.7]} 17. Nh2
{[%clk 0:02:30.9]} 17... Be6 {[%clk 0:02:30.2]} 18. h5 {[%clk 0:02:31.4]} 18...
b5 {[%clk 0:02:17.7]} 19. h6 {[%clk 0:02:27]} 19... Bf6 {[%clk 0:02:06.6]} 20.
Ne3 {[%clk 0:02:25.5]} 20... c4 {[%clk 0:02:03.6]} 21. Nf3 {[%clk 0:02:19.9]}
21... cxb3 {[%clk 0:01:58.3]} 22. cxb3 {[%clk 0:02:20.8]} 22... Bxb3 {[%clk
0:01:57.5]} 23. Ng4 {[%clk 0:02:18.9]} 23... Bh8 {[%clk 0:01:54]} 24. Qg5 {[%clk
0:02:16]} 24... Qd8 {[%clk 0:01:46.9]} 25. Qxd8 {[%clk 0:02:11.6]} 25... Rbxd8
{[%clk 0:01:47.8]} 26. Bxe5 {[%clk 0:02:10.9]} 26... Rxd3 {[%clk 0:01:13]} 27.
Bxh8 {[%clk 0:02:09.3]} 27... Kxh8 {[%clk 0:01:13.6]} 28. Nf6 {[%clk 0:02:09.5]}
28... Red8 {[%clk 0:01:13]} 29. Ra3 {[%clk 0:01:44.3]} 29... Be6 {[%clk
0:01:04.3]} 30. Rxd3 {[%clk 0:01:44.2]} 30... Rxd3 {[%clk 0:01:05.2]} 31. Ra1
{[%clk 0:01:43.5]} 31... Rd8 {[%clk 0:00:58.6]} 32. Ng5 {[%clk 0:01:41.4]} 32...
b4 {[%clk 0:00:42.1]} 33. Ra7 {[%clk 0:01:39.9]} 33... b3 {[%clk 0:00:26.4]} 34.
Rb7 {[%clk 0:01:39.7]} 34... c5 {[%clk 0:00:16.2]} 35. Nxe6 {[%clk 0:01:40.2]}
35... fxe6 {[%clk 0:00:17.1]} 36. Rxb3 {[%clk 0:01:39.9]} 36... c4 {[%clk
0:00:16.5]} 37. Rc3 {[%clk 0:01:38.2]} 37... Rc8 {[%clk 0:00:16.5]} 38. f4
{[%clk 0:01:36.9]} 38... e5 {[%clk 0:00:14.9]} 39. f5 {[%clk 0:01:35.1]} 39...
Rc6 {[%clk 0:00:12.9]} 40. Nd5 {[%clk 0:01:33.9]} 40... gxf5 {[%clk 0:00:13.2]}
41. exf5 {[%clk 0:01:33.1]} 41... Rxh6 {[%clk 0:00:13.8]} 42. Rxc4 {[%clk
0:01:33.2]} 42... Rd6 {[%clk 0:00:13.4]} 43. Rc5 {[%clk 0:01:30.9]} 43... Kg7
{[%clk 0:00:12.7]} 44. Kf2 {[%clk 0:01:27.5]} 44... Nd7 {[%clk 0:00:11]} 45. Ra5
{[%clk 0:01:27.6]} 45... Nf6 {[%clk 0:00:11]} 46. Ne3 {[%clk 0:01:21.2]} 46...
Rd2+ {[%clk 0:00:06.4]} 47. Kf3 {[%clk 0:01:18.4]} 47... e4+ {[%clk 0:00:06.2]}
48. Kf4 {[%clk 0:01:18.4]} 48... Rf2+ {[%clk 0:00:05.3]} 49. Ke5 {[%clk
0:01:18.7]} 49... Nd7+ {[%clk 0:00:03.3]} 50. Ke6 {[%clk 0:01:18.5]} 50... Nf8+
{[%clk 0:00:03.6]} 51. Ke7 {[%clk 0:01:18.7]} 51... Re2 {[%clk 0:00:02.6]} 52.
f6+ {[%clk 0:01:18.7]} 52... Kg8 {[%clk 0:00:03]} 53. Rg5+ {[%clk 0:01:18.9]}
53... Kh8 {[%clk 0:00:03.1]} 54. Kxf8 {[%clk 0:01:18.9]} 1-0

[Event "Late-Titled-Tuesday-Blitz-February-06-2024"]
[Site "Chess.com"]
[Date "2024.02.06"]
[Round "4"]
[White "GMKrikor"]
[Black "StellarChess"]
[Result "1-0"]
[WhiteElo "2821"]
[BlackElo "2571"]
[TimeControl "180+1"]
[EndTime "14:38:39 PST"]
[Termination "GMKrikor won by resignation"]

1. Nf3 {[%clk 0:03:00.9]} 1... g6 {[%clk 0:02:59.8]} 2. c4 {[%clk 0:03:00.2]}
2... c6 {[%clk 0:02:58.5]} 3. d4 {[%clk 0:02:53.3]} 3... d5 {[%clk 0:02:58.5]}
4. Nc3 {[%clk 0:02:53.9]} 4... Bg7 {[%clk 0:02:57.7]} 5. cxd5 {[%clk 0:02:51.3]}
5... cxd5 {[%clk 0:02:57.9]} 6. Bf4 {[%clk 0:02:51.6]} 6... a6 {[%clk
0:02:57.5]} 7. e3 {[%clk 0:02:51.8]} 7... Nf6 {[%clk 0:02:57.1]} 8. h3 {[%clk
0:02:52.4]} 8... O-O {[%clk 0:02:57]} 9. Bd3 {[%clk 0:02:52.5]} 9... Nc6 {[%clk
0:02:56.8]} 10. O-O {[%clk 0:02:52.4]} 10... e6 {[%clk 0:02:45.3]} 11. Rc1
{[%clk 0:02:52]} 11... Re8 {[%clk 0:02:44.5]} 12. a3 {[%clk 0:02:48.3]} 12...
Bd7 {[%clk 0:02:42.8]} 13. Na4 {[%clk 0:02:46.3]} 13... b6 {[%clk 0:02:39]} 14.
Ne5 {[%clk 0:02:30.8]} 14... Nxe5 {[%clk 0:02:33.4]} 15. Bxe5 {[%clk 0:02:13.9]}
15... Ra7 {[%clk 0:02:13.4]} 16. Qb3 {[%clk 0:02:08.6]} 16... Bxa4 {[%clk
0:02:08.6]} 17. Qxa4 {[%clk 0:02:09.5]} 17... Qd7 {[%clk 0:02:02.6]} 18. Qxd7
{[%clk 0:01:47.1]} 18... Nxd7 {[%clk 0:02:03.5]} 19. Bxg7 {[%clk 0:01:47.5]}
19... Kxg7 {[%clk 0:02:03]} 20. Rc6 {[%clk 0:01:48.1]} 20... Rb8 {[%clk
0:01:46.1]} 21. Rfc1 {[%clk 0:01:43.9]} 21... a5 {[%clk 0:01:34.1]} 22. Bb5
{[%clk 0:01:39.7]} 22... Nf6 {[%clk 0:01:33.1]} 23. f3 {[%clk 0:01:35.6]} 23...
h5 {[%clk 0:01:32.4]} 24. h4 {[%clk 0:01:31.9]} 24... Kf8 {[%clk 0:01:29.3]} 25.
Rc7 {[%clk 0:01:28.9]} 25... Rxc7 {[%clk 0:01:23.1]} 26. Rxc7 {[%clk 0:01:28.6]}
26... Kg7 {[%clk 0:01:21.4]} 27. Kf2 {[%clk 0:01:26.7]} 27... Kf8 {[%clk
0:01:18.4]} 28. Kg3 {[%clk 0:01:26]} 28... Ne8 {[%clk 0:01:00.7]} 29. Bxe8
{[%clk 0:01:07.3]} 29... Kxe8 {[%clk 0:00:56.1]} 30. Kf4 {[%clk 0:01:04.5]}
30... b5 {[%clk 0:00:53.1]} 31. b3 {[%clk 0:00:52.1]} 31... a4 {[%clk
0:00:51.3]} 32. b4 {[%clk 0:00:52.4]} 32... Kf8 {[%clk 0:00:44.1]} 33. Ke5
{[%clk 0:00:45.4]} 33... Kg7 {[%clk 0:00:41.5]} 34. e4 {[%clk 0:00:41.5]} 34...
dxe4 {[%clk 0:00:40.4]} 35. fxe4 {[%clk 0:00:42.4]} 35... Rb6 {[%clk 0:00:36.7]}
36. g3 {[%clk 0:00:41.1]} 36... g5 {[%clk 0:00:34.3]} 37. hxg5 {[%clk 0:00:36]}
37... Kg6 {[%clk 0:00:34.3]} 38. d5 {[%clk 0:00:32.8]} 38... exd5 {[%clk
0:00:33.1]} 39. exd5 {[%clk 0:00:33.3]} 39... Rb8 {[%clk 0:00:28.7]} 40. d6
{[%clk 0:00:32.9]} 40... Re8+ {[%clk 0:00:29.1]} 41. Re7 {[%clk 0:00:32.7]}
41... Rd8 {[%clk 0:00:24.4]} 42. d7 {[%clk 0:00:32.5]} 42... Kxg5 {[%clk
0:00:24.9]} 43. Kd6 {[%clk 0:00:32.5]} 43... f5 {[%clk 0:00:25.1]} 44. Re8
{[%clk 0:00:31.6]} 44... Rxd7+ {[%clk 0:00:24.9]} 45. Kxd7 {[%clk 0:00:32.1]}
45... f4 {[%clk 0:00:25.8]} 46. gxf4+ {[%clk 0:00:32]} 46... Kxf4 {[%clk
0:00:26.7]} 47. Kc6 {[%clk 0:00:32.8]} 1-0

[Event "Late-Titled-Tuesday-Blitz-February-06-2024"]
[Site "Chess.com"]
[Date "2024.02.06"]
[Round "4"]
[White "jup1978"]
[Black "N_I_Chess"]
[Result "1-0"]
[WhiteElo "2518"]
[BlackElo "2337"]
[TimeControl "180+1"]
[EndTime "14:38:39 PST"]
[Termination "jup1978 won on time"]

1. d4 {[%clk 0:02:54]} 1... Nf6 {[%clk 0:03:00.2]} 2. Nf3 {[%clk 0:02:53.4]}
2... d5 {[%clk 0:02:59.8]} 3. c4 {[%clk 0:02:52.9]} 3... e6 {[%clk 0:02:58.9]}
4. g3 {[%clk 0:02:53.2]} 4... Bb4+ {[%clk 0:02:53.1]} 5. Bd2 {[%clk 0:02:52.6]}
5... Qe7 {[%clk 0:02:45.2]} 6. Bg2 {[%clk 0:02:51.2]} 6... O-O {[%clk
0:02:43.4]} 7. O-O {[%clk 0:02:48.9]} 7... c6 {[%clk 0:02:36.2]} 8. Bg5 {[%clk
0:02:44.7]} 8... h6 {[%clk 0:02:29.2]} 9. Bxf6 {[%clk 0:02:42.7]} 9... Qxf6
{[%clk 0:02:25.1]} 10. a3 {[%clk 0:02:39]} 10... Bd6 {[%clk 0:02:15.2]} 11. c5
{[%clk 0:02:38.6]} 11... Bc7 {[%clk 0:02:15.5]} 12. b4 {[%clk 0:02:39.1]} 12...
e5 {[%clk 0:01:49.4]} 13. dxe5 {[%clk 0:02:32.3]} 13... Bxe5 {[%clk 0:01:50.3]}
14. Nxe5 {[%clk 0:02:32.6]} 14... Qxe5 {[%clk 0:01:51]} 15. Nd2 {[%clk
0:02:32.4]} 15... Bf5 {[%clk 0:01:46.3]} 16. e3 {[%clk 0:02:31.6]} 16... a5
{[%clk 0:01:24.5]} 17. Nf3 {[%clk 0:02:30.4]} 17... Qc3 {[%clk 0:01:20.5]} 18.
Qc1 {[%clk 0:02:21.3]} 18... axb4 {[%clk 0:01:03.6]} 19. axb4 {[%clk 0:02:22.2]}
19... Qxa1 {[%clk 0:01:00.3]} 20. Qxa1 {[%clk 0:02:21.4]} 20... Rxa1 {[%clk
0:01:01.2]} 21. Rxa1 {[%clk 0:02:21.5]} 21... Na6 {[%clk 0:01:02.1]} 22. Nd4
{[%clk 0:02:19.6]} 22... Bd3 {[%clk 0:00:56.8]} 23. Ra3 {[%clk 0:02:11.4]} 23...
Bc4 {[%clk 0:00:54.3]} 24. Bf1 {[%clk 0:01:59.5]} 24... Nxb4 {[%clk 0:00:21.3]}
25. Bxc4 {[%clk 0:01:58]} 25... dxc4 {[%clk 0:00:22.2]} 26. Ra4 {[%clk
0:01:57.1]} 26... Nd3 {[%clk 0:00:21.6]} 27. Rxc4 {[%clk 0:01:54.3]} 27... Ra8
{[%clk 0:00:21.8]} 28. Rc3 {[%clk 0:01:53.3]} 28... Ne5 {[%clk 0:00:15.3]} 29.
Rb3 {[%clk 0:01:49.4]} 29... Ra7 {[%clk 0:00:14.8]} 30. Kg2 {[%clk 0:01:48]}
30... Nd7 {[%clk 0:00:15.3]} 31. Rc3 {[%clk 0:01:45.2]} 31... Ra5 {[%clk
0:00:15.5]} 32. Nb3 {[%clk 0:01:44.2]} 32... Rb5 {[%clk 0:00:16.1]} 33. h3
{[%clk 0:01:43.2]} 33... f6 {[%clk 0:00:15.7]} 34. g4 {[%clk 0:01:42.9]} 34...
Kf7 {[%clk 0:00:16.1]} 35. f4 {[%clk 0:01:43]} 35... Ke6 {[%clk 0:00:16.7]} 36.
Kf3 {[%clk 0:01:39.6]} 36... g6 {[%clk 0:00:14.5]} 37. Nd4+ {[%clk 0:01:39.2]}
37... Ke7 {[%clk 0:00:13.6]} 38. Nxb5 {[%clk 0:01:40.1]} 38... cxb5 {[%clk
0:00:13.6]} 39. Rb3 {[%clk 0:01:41]} 39... Nxc5 {[%clk 0:00:13]} 40. Rxb5 {[%clk
0:01:41.5]} 40... Kd6 {[%clk 0:00:13.9]} 41. Rb6+ {[%clk 0:01:40.2]} 41... Kd5
{[%clk 0:00:14.1]} 42. Rxf6 {[%clk 0:01:39.9]} 42... b5 {[%clk 0:00:11.3]} 43.
Rxg6 {[%clk 0:01:40]} 43... Nd7 {[%clk 0:00:10.2]} 44. Rxh6 {[%clk 0:01:37.4]}
44... b4 {[%clk 0:00:10.5]} 45. Rh5+ {[%clk 0:01:38.3]} 45... Kc4 {[%clk
0:00:10.4]} 46. Rh7 {[%clk 0:01:35.5]} 46... Nc5 {[%clk 0:00:10.6]} 47. Rh8
{[%clk 0:01:30]} 47... Na6 {[%clk 0:00:07.5]} 48. Ra8 {[%clk 0:01:29.2]} 48...
Kb5 {[%clk 0:00:07.3]} 49. Ra7 {[%clk 0:01:26.1]} 49... Nc5 {[%clk 0:00:04.8]}
50. Ra8 {[%clk 0:01:21.7]} 50... Na6 {[%clk 0:00:04.1]} 51. Rd8 {[%clk
0:01:20.3]} 1-0

[Event "Late-Titled-Tuesday-Blitz-February-06-2024"]
[Site "Chess.com"]
[Date "2024.02.06"]
[Round "4"]
[White "SchmakAttack"]
[Black "Petukhov_Dmitry"]
[Result "1-0"]
[WhiteElo "2761"]
[BlackElo "2547"]
[TimeControl "180+1"]
[EndTime "14:38:42 PST"]
[Termination "SchmakAttack won by checkmate"]

1. e4 {[%clk 0:03:00]} 1... c5 {[%clk 0:02:59.8]} 2. Nc3 {[%clk 0:02:58.7]} 2...
Nc6 {[%clk 0:02:59.5]} 3. f4 {[%clk 0:02:58.4]} 3... e6 {[%clk 0:02:59]} 4. Nf3
{[%clk 0:02:56.3]} 4... d5 {[%clk 0:02:58.9]} 5. Bb5 {[%clk 0:02:54.8]} 5... d4
{[%clk 0:02:58.5]} 6. Ne2 {[%clk 0:02:54.7]} 6... Bd7 {[%clk 0:02:56.2]} 7. O-O
{[%clk 0:02:54.4]} 7... Nf6 {[%clk 0:02:53.5]} 8. d3 {[%clk 0:02:53.5]} 8... a6
{[%clk 0:02:46.8]} 9. Ba4 {[%clk 0:02:42.7]} 9... Be7 {[%clk 0:02:37.5]} 10. c3
{[%clk 0:02:37.4]} 10... dxc3 {[%clk 0:02:34.3]} 11. bxc3 {[%clk 0:02:37.3]}
11... c4 {[%clk 0:02:29.8]} 12. e5 {[%clk 0:02:37]} 12... cxd3 {[%clk 0:02:25]}
13. Qxd3 {[%clk 0:02:36.9]} 13... Nd5 {[%clk 0:02:13.7]} 14. c4 {[%clk
0:02:28.7]} 14... Ndb4 {[%clk 0:02:03]} 15. Qe4 {[%clk 0:02:24.5]} 15... Nxe5
{[%clk 0:01:53.3]} 16. Nxe5 {[%clk 0:01:42.7]} 16... Bxa4 {[%clk 0:01:49.8]} 17.
Qxb7 {[%clk 0:01:28.2]} 17... f6 {[%clk 0:00:55.1]} 18. Nc3 {[%clk 0:01:28.1]}
18... Rb8 {[%clk 0:00:38.1]} 19. Qf3 {[%clk 0:01:24.5]} 19... Qd4+ {[%clk
0:00:33.4]} 20. Kh1 {[%clk 0:00:38.4]} 20... fxe5 {[%clk 0:00:32.3]} 21. Rb1
{[%clk 0:00:38.5]} 21... Bc2 {[%clk 0:00:27.4]} 22. Rb2 {[%clk 0:00:38.2]} 22...
Bd3 {[%clk 0:00:25.4]} 23. Ne2 {[%clk 0:00:34]} 23... Qxc4 {[%clk 0:00:22.3]}
24. fxe5 {[%clk 0:00:30.4]} 24... Rf8 {[%clk 0:00:21.3]} 25. Qh5+ {[%clk
0:00:28.6]} 25... g6 {[%clk 0:00:20.5]} 26. Rxf8+ {[%clk 0:00:28.6]} 26... Bxf8
{[%clk 0:00:16.6]} 27. Qxh7 {[%clk 0:00:27.6]} 27... Bxe2 {[%clk 0:00:16.8]} 28.
Bg5 {[%clk 0:00:27.6]} 28... Qd3 {[%clk 0:00:11.2]} 29. h3 {[%clk 0:00:26.6]}
29... Nc6 {[%clk 0:00:09]} 30. Rd2 {[%clk 0:00:22.9]} 30... Qb1+ {[%clk
0:00:07.5]} 31. Kh2 {[%clk 0:00:23]} 31... Qf5 {[%clk 0:00:07.7]} 32. Qd7#
{[%clk 0:00:22.7]} 1-0

[Event "Late-Titled-Tuesday-Blitz-February-06-2024"]
[Site "Chess.com"]
[Date "2024.02.06"]
[Round "4"]
[White "ChessBrainiacOnTwitch"]
[Black "edgarhay012"]
[Result "0-1"]
[WhiteElo "2847"]
[BlackElo "2595"]
[TimeControl "180+1"]
[EndTime "14:38:43 PST"]
[Termination "edgarhay012 won by resignation"]

1. e4 {[%clk 0:02:53.1]} 1... c5 {[%clk 0:02:57.5]} 2. Nf3 {[%clk 0:02:53.2]}
2... e6 {[%clk 0:02:57.8]} 3. d4 {[%clk 0:02:53.5]} 3... cxd4 {[%clk 0:02:58.7]}
4. Nxd4 {[%clk 0:02:54.4]} 4... Nf6 {[%clk 0:02:57.1]} 5. Nc3 {[%clk 0:02:53.9]}
5... Nc6 {[%clk 0:02:57.6]} 6. a3 {[%clk 0:02:33.1]} 6... Be7 {[%clk 0:02:53.5]}
7. Be3 {[%clk 0:02:31.1]} 7... d5 {[%clk 0:02:52.8]} 8. exd5 {[%clk 0:02:24.6]}
8... Nxd5 {[%clk 0:02:52.7]} 9. Nxd5 {[%clk 0:02:23.6]} 9... exd5 {[%clk
0:02:52.1]} 10. Be2 {[%clk 0:02:22.9]} 10... O-O {[%clk 0:02:51.8]} 11. O-O
{[%clk 0:02:23.3]} 11... Bf6 {[%clk 0:02:50.3]} 12. Qd2 {[%clk 0:02:20.7]} 12...
Re8 {[%clk 0:02:49.2]} 13. Rfe1 {[%clk 0:02:18.9]} 13... Ne5 {[%clk 0:02:46.7]}
14. Rad1 {[%clk 0:02:18]} 14... Nc4 {[%clk 0:02:35.4]} 15. Bxc4 {[%clk 0:02:17]}
15... dxc4 {[%clk 0:02:36.3]} 16. Qb4 {[%clk 0:02:11.3]} 16... Bg4 {[%clk
0:02:24.1]} 17. Rd2 {[%clk 0:01:39.6]} 17... Qc7 {[%clk 0:02:07.6]} 18. Nb5
{[%clk 0:01:37.9]} 18... Qc6 {[%clk 0:02:07.1]} 19. Nd6 {[%clk 0:01:19.1]} 19...
Re6 {[%clk 0:00:55.5]} 20. h3 {[%clk 0:00:50.2]} 20... Bh5 {[%clk 0:00:45.5]}
21. Nf5 {[%clk 0:00:35.3]} 21... a5 {[%clk 0:00:30.2]} 22. Rd6 {[%clk
0:00:02.5]} 22... axb4 {[%clk 0:00:26.8]} 23. Rxc6 {[%clk 0:00:03]} 23... bxc6
{[%clk 0:00:25.9]} 24. axb4 {[%clk 0:00:03]} 24... Bg6 {[%clk 0:00:24.8]} 25.
Ng3 {[%clk 0:00:02.8]} 25... Bxb2 {[%clk 0:00:25.1]} 26. Rb1 {[%clk 0:00:02.2]}
26... Ra1 {[%clk 0:00:25.3]} 27. Rxa1 {[%clk 0:00:02.5]} 27... Bxa1 {[%clk
0:00:26.2]} 28. Ne2 {[%clk 0:00:01.9]} 28... Bxc2 {[%clk 0:00:26]} 29. Nf4
{[%clk 0:00:02.6]} 29... Rd6 {[%clk 0:00:26.1]} 30. Bc5 {[%clk 0:00:03.1]} 30...
Rd1+ {[%clk 0:00:26.2]} 31. Kh2 {[%clk 0:00:03.7]} 31... Be5 {[%clk 0:00:26.8]}
32. g3 {[%clk 0:00:03.8]} 32... Bxf4 {[%clk 0:00:26.6]} 33. gxf4 {[%clk
0:00:04.3]} 33... Be4 {[%clk 0:00:27.3]} 34. Kg3 {[%clk 0:00:04.7]} 34... c3
{[%clk 0:00:27.8]} 35. Be3 {[%clk 0:00:04.8]} 35... c2 {[%clk 0:00:28.2]} 36. f5
{[%clk 0:00:05.6]} 36... Rd3 {[%clk 0:00:28.6]} 37. Kf4 {[%clk 0:00:06]} 37...
Rxe3 {[%clk 0:00:29.4]} 0-1